fUSD/lending_fUSD_20250511
["ID","MTS","AMOUNT","RATE_DAILY","PERIOD"]
[360754214,1746978164853,-1535.07,0.00043302,120]
[360754215,1746978164913,-1535.07,0.00043302,120]
[360754216,1746978164969,-1535.07,0.00043302,120]
[360754217,1746978165025,-1535.07,0.00043302,120]
[360754218,1746978165082,-1535.07,0.00043302,120]
[360754219,1746978165139,-1535.07,0.00043302,120]
[360754220,1746978165197,-1535.07,0.00043302,120]
[360754221,1746978165257,-1535.07,0.00043302,120]
[360754222,1746978165316,-1535.07,0.00043302,120]
[360754223,1746978165375,-1535.10418637,0.00043302,120]
[360754224,1746978165433,-500.0,0.00043302,120]
[360754225,1746978165488,-500.0,0.00043302,120]
[360754226,1746978165542,-259.15048675,0.00043302,120]
[360754227,1746978165598,-2892.11,0.00043302,120]
[360754228,1746978165655,-2892.11,0.00043302,120]
[360754229,1746978165713,-2892.11,0.00043302,120]
[360754230,1746978165770,-2892.11,0.00043302,120]
[360754231,1746978165829,-2892.11,0.00043302,120]
[360754232,1746978165890,-2892.11,0.00043302,120]
[360754233,1746978165945,-2892.11,0.00043302,120]
[360754234,1746978166002,-2892.11,0.00043302,120]
[360754235,1746978166059,-2892.11,0.00043302,120]
[360754236,1746978166113,-2892.11,0.00043302,120]
[360754237,1746978166171,-2892.11,0.00043302,120]
[360754238,1746978166229,-2892.11,0.00043302,120]
[360754239,1746978166283,-2892.11,0.00043302,120]
[360754240,1746978166342,-2892.11,0.00043302,120]
[360754241,1746978166397,-2892.11,0.00043302,120]
[360754242,1746978166454,-2892.11,0.00043302,120]
[360754243,1746978166510,-2892.11,0.00043302,120]
[360754244,1746978166566,-2892.11,0.00043302,120]
[360754245,1746978166622,-2892.11,0.00043302,120]
[360754246,1746978166677,-2892.11,0.00043302,120]
[360754247,1746978166733,-2892.11,0.00043302,120]
[360754248,1746978166787,-2892.11,0.00043302,120]
[360754249,1746978166839,-2892.11,0.00043302,120]
[360754250,1746978166893,-2892.12358059,0.00043302,120]
[360754251,1746978166944,-591.56215758,0.00043302,120]
[360754252,1746978166997,-3342.40470408,0.00043302,90]
[360754253,1746978167048,-1332.81166911,0.00043302,120]
[360754254,1746978167102,-309.96209009,0.00043302,91]
[360754255,1746978167160,-1118.07636574,0.00043302,120]
[360754256,1746978167217,-336.9364895,0.00043302,120]
[360754257,1746978167272,-371.53736181,0.00043302,120]
[360754258,1746978167326,-2360.0,0.00043302,120]
[360754259,1746978167378,-435.92888623,0.00043302,120]
[360754260,1746978167608,-205.13563175,0.00043302,120]
[360754261,1746978167672,-183.15712996,0.00043302,60]
[360754262,1746978167730,-960.00252917,0.00043302,90]
[360754263,1746978167788,-263.9467532,0.00043302,120]
[360754264,1746978167846,-715.66710892,0.00043302,120]
[360754265,1746978167905,-2311.93236009,0.00043302,120]
[360754266,1746978167966,-387.81570423,0.00043302,60]
[360754267,1746978168023,-328.24775319,0.00043302,120]
[360754268,1746978168086,-2061.76837769,0.00043302,120]
[360754269,1746978168143,-324.01607367,0.00043302,120]
[360754270,1746978168202,-1572.48510974,0.00043302,120]
[360754271,1746978168263,-278.27165786,0.00043302,120]
[360754272,1746978168322,-354.14518572,0.00043302,60]
[360754273,1746978168382,-369.26326326,0.00043302,120]
[360754274,1746978168438,-622.66361423,0.00043302,120]
[360754275,1746978168496,-1545.4171619,0.00043302,120]
[360754276,1746978168552,-213.29072917,0.00043302,120]
[360754277,1746978168608,-1553.18600898,0.00043302,120]
[360754278,1746978168665,-358.0,0.00043302,120]
[360754279,1746978168719,-191.38625226,0.00043302,60]
[360754280,1746978168775,-1802.48988107,0.00043302,120]
[360754281,1746978168830,-2245.35312156,0.00043302,120]
[360754282,1746978168888,-2669.13768431,0.00043302,120]
[360754283,1746978168943,-724.24718571,0.00043302,120]
[360754284,1746978169002,-2683.31973812,0.00043302,120]
[360754285,1746978169061,-635.64940284,0.00043302,60]
[360754286,1746978169119,-5051.2204844,0.00043302,120]
[360754287,1746978169187,-3684.14831652,0.00043302,120]
[360754288,1746978169251,-1361.68759045,0.00043302,120]
[360754289,1746978169312,-221.50297989,0.00043302,120]
[360754290,1746978169376,-385.25487047,0.00043302,120]
[360754291,1746978169440,-485.86712746,0.00043302,120]
[360754292,1746978169501,-205.64610027,0.00043302,120]
[360754293,1746978169560,-1457.98245037,0.00043302,120]
[360754294,1746978169618,-647.50462131,0.00043302,120]
[360754295,1746978169675,-180.4835394,0.00043302,120]
[360754296,1746978169755,-1056.46082807,0.00043302,45]
[360754297,1746978169837,-306.54041242,0.00043302,60]
[360754298,1746978169921,-998.0,0.00043302,120]
[360754299,1746978169999,-1000.0,0.00043302,120]
[360754300,1746978170080,-2655.0,0.00043302,50]
[360754301,1746978170159,-283107.7316454,0.00043302,60]
[360754302,1746978170236,-2182.0,0.00043302,120]
[360754303,1746978170321,-5000.0,0.00043302,35]
[360754304,1746978170399,-2298.40352477,0.00043302,120]
[360754305,1746978170473,-52660.51653554,0.00043302,120]
[360754306,1746978170543,-2064.0,0.00043302,120]
[360754307,1746978170622,-624.71,0.00043302,120]
[360754308,1746978170696,-431.17742373,0.00043302,120]
[360754309,1746978170768,-500.0,0.00043302,120]
[360754310,1746978170847,-372.0629013,0.00043302,120]
[360754311,1746978170921,-175.23594144,0.00043302,120]
[360754312,1746978170995,-184.92177963,0.00043302,60]
[360754313,1746978171065,-2855.0,0.00043302,49]
[360754314,1746978171136,-235.35984798,0.00043302,60]
[360754315,1746978171206,-16852.68,0.00043302,120]
[360754316,1746978171277,-16247.36924686,0.00043302,120]
[360754317,1746978171347,-358.902699,0.00043302,120]
[360754318,1746978171419,-286.15147441,0.00043302,120]
[360754319,1746978171493,-256.97796319,0.00043302,120]
[360754320,1746978171566,-366.6380761,0.00043302,120]
[360754321,1746978171638,-253.0686983,0.00043302,120]
[360754322,1746978171710,-2638.01616382,0.00043302,120]
[360754323,1746978171781,-156480.28763104,0.00043302,120]
[360754324,1746978171853,-161.90893831,0.00043302,120]
[360754325,1746978171925,-3000.0,0.00043302,120]
[360754326,1746978171996,-3000.0,0.00043302,120]
[360754327,1746978172068,-3000.0,0.00043302,120]
[360754328,1746978172138,-3000.0,0.00043302,120]
[360754329,1746978172214,-3000.0,0.00043302,120]
[360754330,1746978172287,-3000.0,0.00043302,120]
[360754331,1746978172362,-3000.0,0.00043302,120]
[360754332,1746978172433,-2152801.56829227,0.00043302,60]
[360754333,1746978176409,-3000000.0,0.00043302,60]
[360754334,1746978179023,1583.99,0.00012036,2]
[360754409,1746978305047,201.71628222,0.00013901,2]
[360754410,1746978305073,485.24371778,0.00013901,2]
[360754411,1746978327879,200.0,0.00013879,2]
[360754412,1746978350074,200.0,0.00013866,2]
[360754413,1746978408910,688.06,0.00013845,2]
[360754414,1746978437112,-154.3361,0.00014242,2]
[360754415,1746978437134,-250.0,0.0001426,2]
[360754416,1746978437155,-188.42418258,0.00014296,2]
[360754417,1746978437188,-500.0,0.00014296,2]
[360754418,1746978437221,-6.02294713,0.00014296,2]
[360754424,1746978506401,8426.69628222,0.00013914,2]
[360754426,1746978506424,10000.0,0.00013914,2]
[360754427,1746978506447,5473.30371778,0.00013914,2]
[360754436,1746978613259,200.51923094,0.00014109,2]
[360754437,1746978627264,1428.0,0.000143,5]
[360754444,1746978632202,-631.78948798,0.00014294,2]
[360754445,1746978632386,-568.21051202,0.00014294,2]
[360754446,1746978632396,-300.0,0.00014294,2]
[360754447,1746978632406,-300.0,0.00014294,2]
[360754449,1746978632416,-150.0,0.00014295,2]
[360754451,1746978632426,-500.0,0.00014295,2]
[360754453,1746978632435,-500.0,0.00014295,2]
[360754455,1746978632445,-500.0,0.00014295,2]
[360754457,1746978632454,-500.0,0.00014295,2]
[360754459,1746978632464,-500.0,0.00014295,2]
[360754461,1746978632474,-500.0,0.00014295,2]
[360754463,1746978632483,-18.03098178,0.00014295,2]
[360754464,1746978632496,-621.78070804,0.00014295,2]
[360754465,1746978632506,-500.0,0.00014295,2]
[360754466,1746978632515,-500.0,0.00014295,2]
[360754467,1746978632525,-500.0,0.00014295,2]
[360754468,1746978632534,-500.0,0.00014295,2]
[360754469,1746978632544,-500.0,0.00014295,2]
[360754470,1746978632554,-500.0,0.00014295,2]
[360754471,1746978632563,-1583.99,0.00014299,2]
[360754472,1746978632573,-791.2589092,0.000143,5]
[360754473,1746978632584,-420.816,0.000143,5]
[360754475,1746978632596,-1809.41886001,0.000143,5]
[360754479,1746978632658,-512.17759608,0.000143,5]
[360754481,1746978632670,-12415.31316859,0.000143,5]
[360754484,1746978632681,-199.62,0.00014326,2]
[360754485,1746978632690,-721.94,0.00014398,2]
[360754488,1746978632700,-3938.1865,0.000147,2]
[360754489,1746978632709,-555.10218329,0.00014722,2]
[360754492,1746978632719,-1800.892,0.00014722,2]
[360754493,1746978632728,-10485.7294,0.00014722,2]
[360754495,1746978632738,-622.87714848,0.00014739,2]
[360754498,1746978632748,-2500.0,0.00014744,2]
[360754500,1746978632757,-909.669,0.00014767,2]
[360754502,1746978632766,-316.54029767,0.00014799,2]
[360754503,1746978632775,-1057.0539,0.000148,2]
[360754505,1746978632784,-1000.0,0.000148,2]
[360754508,1746978632794,-2745.0318,0.000148,2]
[360754510,1746978632803,-17943.9181,0.000148,2]
[360754512,1746978632814,-827.5585,0.000148,2]
[360754514,1746978632824,-698.0905,0.000148,2]
[360754516,1746978632833,-2212.85957009,0.000148,2]
[360754518,1746978632844,-1794.81042991,0.000148,2]
[360754520,1746978632854,-2536.1222,0.000148,2]
[360754522,1746978632863,-15171.7621,0.000148,2]
[360754524,1746978632874,-3034.33310759,0.000148,2]
[360754530,1746978632923,-449.32685517,0.000148,2]
[360754878,1746978638620,-537.13002854,0.000148,2]
[360754881,1746978638632,-6507.78804294,0.000148,2]
[360754883,1746978638645,-4172.55442544,0.000148,2]
[360754885,1746978638655,-155.11104543,0.000148,2]
[360754887,1746978638664,-10528.57803417,0.00014811,2]
[360754889,1746978638674,-4172.55442541,0.00014811,2]
[360754891,1746978638684,-3977.95,0.00014822,2]
[360754893,1746978638693,-999.99,0.00014822,2]
[360754895,1746978638703,-17869.63,0.00014822,2]
[360754897,1746978638713,-9999.99,0.00014822,2]
[360754899,1746978638722,-694.54,0.00014822,2]
[360754901,1746978638732,-150.99,0.00014822,2]
[360754903,1746978638742,-150.99,0.00014822,2]
[360754905,1746978638751,-10528.57803417,0.00014822,2]
[360754907,1746978638761,-4172.55442541,0.00014822,2]
[360754909,1746978638770,-10528.57803417,0.00014833,2]
[360754911,1746978638779,-4172.55442541,0.00014833,2]
[360754913,1746978638790,-155.11104543,0.00014833,2]
[360754915,1746978638800,-3662.92197094,0.00014844,2]
[360755087,1746978640651,-1180.000015,0.00014844,2]
[360755089,1746978640664,-2408.00013885,0.00014844,2]
[360755091,1746978640676,-3000.0,0.00014844,2]
[360755100,1746978640751,-277.65590938,0.00014844,2]
[360755102,1746978640760,-1158.56890744,0.00014844,2]
[360755109,1746978640813,-3013.98551797,0.00014844,2]
[360755111,1746978640823,-166.57,0.00014844,2]
[360755113,1746978640832,-1099.56032056,0.00014856,2]
[360755352,1746978643185,-504.93443081,0.00014856,2]
[360755362,1746978643265,-965.18,0.00014856,2]
[360755398,1746978643614,-7958.9032828,0.00014856,2]
[360755400,1746978643623,-2286.99671827,0.00014856,2]
[360755402,1746978643635,-1885.55770714,0.00014856,2]
[360755404,1746978643644,-10528.57803417,0.00014867,2]
[360755406,1746978643653,-4172.55442541,0.00014867,2]
[360755408,1746978643663,-155.11104543,0.00014867,2]
[360755410,1746978643672,-10528.57803417,0.00014878,2]
[360755412,1746978643682,-4172.55442541,0.00014878,2]
[360755414,1746978643692,-5800.0,0.00014883,2]
[360755416,1746978643702,-10528.57803417,0.00014889,2]
[360755418,1746978643712,-4172.55442541,0.00014889,2]
[360755420,1746978643722,-500.0,0.00014889,2]
[360755422,1746978643731,-177.796,0.00014891,2]
[360755425,1746978643742,-1947.372,0.00014891,2]
[360755427,1746978643751,-5800.0,0.00014891,2]
[360755429,1746978643761,-1418.2818,0.000149,2]
[360755431,1746978643770,-94452.48406868,0.000149,2]
[360755775,1746978647035,-4343.02668055,0.000149,2]
[360755778,1746978647046,-2124.99999612,0.000149,2]
[360755783,1746978647087,-20669.25600001,0.000149,2]
[360755797,1746978647208,-21798.32,0.000149,2]
[360755799,1746978647219,-300.06,0.000149,2]
[360755802,1746978647230,-1250.67,0.000149,2]
[360755817,1746978647372,-61731.33635464,0.000149,2]
[360755819,1746978647384,-5800.0,0.000149,2]
[360755821,1746978647394,-242.69364436,0.000149,2]
[360755823,1746978647404,-166.55221696,0.000149,2]
[360755825,1746978647413,-10528.57803417,0.000149,2]
[360755827,1746978647423,-178.97793979,0.000149,2]
[360755829,1746978647434,-606.9859155,0.000149,2]
[360755831,1746978647443,-4172.55442541,0.000149,2]
[360755833,1746978647452,-443.36137216,0.000149,2]
[360755835,1746978647462,-155.11104543,0.000149,2]
[360755837,1746978647471,-165.44006915,0.000149,2]
[360755839,1746978647481,-870.8641095,0.00014924,2]
[360755841,1746978647490,-500.0,0.00014973,2]
[360755843,1746978647499,-500.0,0.00014973,2]
[360755845,1746978647508,-500.0,0.00014973,2]
[360755847,1746978647517,-547.6287202,0.00014973,2]
[360755849,1746978647526,-500.0,0.00014973,2]
[360755851,1746978647536,-162.40496682,0.00014973,2]
[360755853,1746978647546,-500.0,0.00014973,2]
[360755855,1746978647555,-390.05098544,0.00014973,2]
[360755857,1746978647564,-3595.5437622,0.00014989,2]
[360755859,1746978647574,-1375.0292282,0.0001499,2]
[360755861,1746978647583,-626.14573787,0.0001499,2]
[360756548,1746978775829,847.0,0.00028,120]
[360756549,1746978838844,228.6,0.00013699,2]
[360756550,1746978953703,4097.57705128,0.00013843,2]
[360756551,1746978953727,1875.00294872,0.00013843,2]
[360756552,1746978954186,1000.0,0.00013843,2]
[360756553,1746978968538,7124.99705128,7.945e-05,2]
[360756554,1746978968561,7468.80146372,7.945e-05,2]
[360756555,1746978991450,150.0,0.00013776,2]
[360756556,1746979030556,250.0,0.00014175,2]
[360756557,1746979064946,386.0,0.00028,120]
[360756558,1746979069353,527.01,0.00013732,2]
[360756559,1746979119626,150.0,0.00014201,2]
[360756560,1746979192601,1454.18853628,0.000118,2]
[360756561,1746979192624,46.17146372,0.000118,2]
[360756562,1746979192775,1500.36,0.00014063,2]
[360756563,1746979192803,1037.2,0.00013721,2]
[360756564,1746979286202,774.49,0.00013711,2]
[360756565,1746979355573,200.0,0.0001369,2]
[360756566,1746979376108,200.0,0.00013695,2]
[360756567,1746979413247,6241.77853628,0.00013691,2]
[360756568,1746979413270,154.41146372,0.00013691,2]
[360756569,1746979437453,443.56,0.00014175,2]
[360756570,1746979440592,200.0,0.00013699,2]
[360756571,1746979464616,290.5,0.00013687,2]
[360756572,1746979489159,1465.93,0.00013687,2]
[360756574,1746979506610,-163.86098508,0.00014247,2]
[360756575,1746979527527,963.74,0.00013688,2]
[360756576,1746979545432,750.0,0.00028,120]
[360756577,1746979610904,547.08,0.00013684,2]
[360756578,1746979628278,-350.64384107,0.00014279,2]
[360756579,1746979628316,-500.0,0.00014279,2]
[360756580,1746979628352,-500.0,0.00014279,2]
[360756581,1746979628389,-500.0,0.00014279,2]
[360756582,1746979628424,-140.95293422,0.00014279,2]
[360756585,1746979760657,158.15,0.00013672,2]
[360756590,1746979816266,500.0,0.00013674,2]
[360756610,1746979832963,-150.0,0.00014277,2]
[360756612,1746979832973,-414.6541791,0.00014277,2]
[360756614,1746979832984,-785.3458209,0.00014277,2]
[360756615,1746979832994,-300.0,0.00014277,2]
[360756616,1746979833003,-500.0,0.00014278,2]
[360756617,1746979833013,-601.3245523,0.00014278,2]
[360756618,1746979833022,-500.0,0.00014278,2]
[360756619,1746979833032,-500.0,0.00014278,2]
[360756620,1746979833042,-500.0,0.00014278,2]
[360756621,1746979833052,-500.0,0.00014278,2]
[360756622,1746979833062,-500.0,0.00014278,2]
[360756623,1746979833071,-500.0,0.00014278,2]
[360756624,1746979833080,-500.0,0.00014278,2]
[360756625,1746979833090,-500.0,0.00014278,2]
[360756626,1746979833100,-500.0,0.00014278,2]
[360756627,1746979833109,-250.0,0.00014322,2]
[360756628,1746979833119,-163.86098508,0.00014329,2]
[360756629,1746979833129,-163.86098508,0.00014438,2]
[360756630,1746979833138,-163.86098508,0.00014521,2]
[360756631,1746979833148,-150.99,0.00014536,2]
[360756632,1746979833157,-159.76,0.00014574,2]
[360756633,1746979833167,-207.4,0.00014594,2]
[360756634,1746979833176,-163.86098508,0.00014603,2]
[360756635,1746979833186,-9999.99,0.00014603,2]
[360756636,1746979833196,-180.27,0.00014603,2]
[360756637,1746979833206,-1149.33,0.00014603,2]
[360756638,1746979833216,-500.0,0.00014603,2]
[360756639,1746979833226,-4965.9037,0.00014608,2]
[360756640,1746979833236,-847.7749,0.00014608,2]
[360756641,1746979833245,-1000.0,0.00014608,2]
[360756642,1746979833255,-2500.0,0.00014608,2]
[360756643,1746979833265,-505.0404546,0.00014611,2]
[360756644,1746979833275,-9814.05284722,0.00014612,2]
[360756645,1746979833284,-550.48975778,0.00014612,2]
[360756646,1746979833294,-172.36073062,0.0001463,2]
[360756647,1746979833304,-9814.05284722,0.00014644,2]
[360756648,1746979833314,-172.36073058,0.00014669,2]
[360756649,1746979833323,-9814.05284722,0.00014676,2]
[360756650,1746979833333,-164.51,0.00014698,2]
[360756651,1746979833343,-164.51,0.00014698,2]
[360756652,1746979833352,-164.51,0.00014698,2]
[360756653,1746979833361,-164.51,0.00014698,2]
[360756654,1746979833371,-151.0,0.000147,2]
[360756655,1746979833380,-151.0,0.000147,2]
[360756656,1746979833390,-155.0,0.000147,2]
[360756657,1746979833400,-151.0,0.000147,2]
[360756658,1746979833410,-151.0,0.000147,2]
[360756659,1746979833420,-668.65185757,0.000147,2]
[360756660,1746979833429,-771.0865,0.000147,2]
[360756661,1746979833439,-2207.3215,0.000147,2]
[360756662,1746979833448,-6433.27697696,0.000147,2]
[360756663,1746979833462,-1860.41560526,0.000147,2]
[360756664,1746979833638,-4374.39851776,0.000147,2]
[360756665,1746979833650,-450.05155706,0.000147,2]
[360756666,1746979833662,-854.25476081,0.000147,2]
[360756667,1746979833674,-1129.60239618,0.000147,2]
[360756668,1746979833686,-60.82064922,0.000147,2]
[360756669,1746979833733,-98.43179714,0.000147,2]
[360756670,1746979833743,-172.36073058,0.00014707,2]
[360756671,1746979833752,-753.44840753,0.00014708,2]
[360756672,1746979833765,-2455.8,0.00014708,2]
[360756673,1746979833792,-6604.80443969,0.00014708,2]
[360756674,1746979833804,-196486.32433777,0.00014709,2]
[360756675,1746979833813,-164.51,0.00014712,2]
[360756676,1746979833822,-163.86098508,0.00014712,2]
[360756677,1746979833832,-15101.99981394,0.00014722,2]
[360756678,1746979833841,-159.25244632,0.00014733,2]
[360756679,1746979833851,-164.51,0.00014734,2]
[360756680,1746979833860,-5071.5932,0.0001474,2]
[360756681,1746979833870,-4035.8916483,0.0001474,2]
[360756682,1746979833881,-389.9341405,0.0001474,2]
[360756683,1746979833893,-5388.22705842,0.0001474,2]
[360756684,1746979833902,-10226.60694158,0.00014744,2]
[360756685,1746979833913,-381.7991848,0.00014744,2]
[360756686,1746979833961,-757.70112046,0.00014744,2]
[360756688,1746979839056,-422.9488,0.00014608,2]
[360756691,1746979839075,-3735.8925671,0.00014744,2]
[360756692,1746979839093,-172.36073058,0.00014746,2]
[360756693,1746979839108,-151.0,0.00014755,2]
[360756694,1746979839127,-164.51,0.00014757,2]
[360756695,1746979839141,-7757.96887144,0.00014767,2]
[360756696,1746979839244,-7344.0309425,0.00014767,2]
[360756699,1746979839259,-159.25244632,0.00014767,2]
[360756701,1746979839274,-9814.05284722,0.00014772,2]
[360756704,1746979839289,-500.0,0.00014773,2]
[360756707,1746979839304,-500.0,0.00014773,2]
[360756709,1746979839318,-500.0,0.00014773,2]
[360756712,1746979839332,-500.0,0.00014773,2]
[360756714,1746979839346,-500.0,0.00014773,2]
[360756717,1746979839362,-501.00564254,0.00014773,2]
[360756719,1746979839376,-511.76390959,0.00014773,2]
[360756722,1746979839391,-500.0,0.00014773,2]
[360756724,1746979839408,-500.0,0.00014773,2]
[360756726,1746979839423,-500.0,0.00014773,2]
[360756727,1746979839436,-500.0,0.00014773,2]
[360756728,1746979839451,-612.64823099,0.00014773,2]
[360756729,1746979839467,-500.0,0.00014773,2]
[360756730,1746979839482,-500.0,0.00014773,2]
[360756731,1746979839497,-550.14715315,0.00014773,2]
[360756732,1746979839512,-500.61411979,0.00014773,2]
[360756733,1746979839526,-501.6822209,0.00014773,2]
[360756734,1746979839541,-500.0,0.00014773,2]
[360756735,1746979839556,-500.0,0.00014773,2]
[360756736,1746979839570,-164.51,0.00014779,2]
[360756737,1746979839585,-499.04042885,0.0001478,2]
[360756738,1746979839600,-587.95006661,0.00014781,2]
[360756739,1746979839615,-172.36073058,0.00014784,2]
[360756740,1746979839630,-15101.99981394,0.00014789,2]
[360756741,1746979839644,-164.51,0.0001479,2]
[360756742,1746979839659,-163.86098508,0.00014795,2]
[360756743,1746979839675,-206670.1531,0.000148,2]
[360756744,1746979839692,-1000.0,0.000148,2]
[360756745,1746979839707,-159.25244632,0.000148,2]
[360756746,1746979839722,-9814.05284722,0.00014804,2]
[360756747,1746979839737,-15101.99981394,0.00014811,2]
[360756748,1746979839752,-172.36073058,0.00014823,2]
[360756749,1746979839766,-184.27,0.00014827,2]
[360756750,1746979839781,-15101.99981394,0.00014833,2]
[360756751,1746979839795,-159.25244632,0.00014833,2]
[360756752,1746979839811,-9814.05284722,0.00014836,2]
[360756753,1746979839827,-499.04042884,0.0001484,2]
[360756754,1746979839842,-12500.0,0.00014847,2]
[360756755,1746979839857,-48055.35245329,0.0001485,2]
[360756756,1746979839872,-15101.99981394,0.00014856,2]
[360756757,1746979839887,-12500.0,0.00014856,2]
[360756758,1746979839902,-172.36073058,0.00014861,2]
[360756759,1746979839916,-12500.0,0.00014865,2]
[360756760,1746979839931,-9814.05284722,0.00014868,2]
[360756761,1746979839946,-12500.0,0.00014874,2]
[360756762,1746979839961,-163.86098508,0.00014877,2]
[360756763,1746979839976,-15101.99981394,0.00014878,2]
[360756764,1746979839990,-500.0,0.0001488,2]
[360756765,1746979840005,-2000.0,0.0001488,2]
[360756766,1746979840019,-500.0,0.0001488,2]
[360756767,1746979840034,-12500.0,0.00014882,2]
[360756769,1746979840049,-864.7317,0.0001489,2]
[360756771,1746979840064,-31053.172,0.0001489,2]
[360756773,1746979840078,-12500.0,0.00014891,2]
[360756775,1746979840093,-5800.0,0.00014891,2]
[360756778,1746979840107,-2479.184,0.00014893,2]
[360756780,1746979840121,-277.806,0.00014894,2]
[360756782,1746979840136,-239.018,0.000149,2]
[360756785,1746979840150,-12500.0,0.000149,2]
[360756787,1746979840165,-9814.05284722,0.000149,2]
[360756789,1746979840179,-5800.0,0.000149,2]
[360756792,1746979840194,-987.97228894,0.000149,2]
[360756794,1746979840208,-166.55221696,0.000149,2]
[360756797,1746979840223,-15101.99981394,0.000149,2]
[360756799,1746979840236,-499.04042884,0.000149,2]
[360756802,1746979840250,-172.36073058,0.000149,2]
[360756804,1746979840265,-1239.8714966,0.000149,2]
[360756807,1746979840279,-179.61765318,0.000149,2]
[360756809,1746979840294,-696.6912876,0.00014924,2]
[360756812,1746979840309,-190.0,0.00014959,2]
[360756814,1746979840325,-500.0,0.00014973,2]
[360756817,1746979840337,-500.0,0.00014973,2]
[360756819,1746979840347,-500.0,0.00014973,2]
[360756821,1746979840357,-500.0,0.00014973,2]
[360756823,1746979840367,-500.0,0.00014973,2]
[360756852,1746979840639,-500.0,0.00014973,2]
[360756855,1746979840663,-500.0,0.00014973,2]
[360756860,1746979840693,-500.0,0.00014973,2]
[360756862,1746979840705,-500.0,0.00014973,2]
[360756864,1746979840714,-500.0,0.00014973,2]
[360756865,1746979840724,-304.02021258,0.00014973,2]
[360756866,1746979840733,-500.0,0.00014973,2]
[360756867,1746979840742,-509.99412388,0.00014973,2]
[360756868,1746979840752,-501.77239095,0.00014973,2]
[360756869,1746979840761,-500.0,0.00014973,2]
[360756870,1746979840771,-500.0,0.00014973,2]
[360756871,1746979840781,-500.0,0.00014973,2]
[360756872,1746979840791,-500.0,0.00014973,2]
[360756873,1746979840800,-500.0,0.00014973,2]
[360756874,1746979840809,-500.0,0.00014973,2]
[360756876,1746979840818,-500.0,0.00014973,2]
[360756878,1746979840827,-500.0,0.00014973,2]
[360756879,1746979840836,-500.0,0.00014973,2]
[360756880,1746979840845,-501.59102885,0.00014973,2]
[360756881,1746979840854,-22023.96920677,0.0001499,2]
[360756882,1746979840864,-159.0,0.0001499,2]
[360756883,1746979840873,-1184.0,0.0001499,2]
[360756884,1746979840883,-274.6500712,0.0001499,2]
[360756885,1746979840894,-1184.0,0.0001499,2]
[360756886,1746979840906,-1184.0,0.0001499,2]
[360756887,1746979840915,-275.00052396,0.0001499,2]
[360756888,1746979840924,-1184.0,0.0001499,2]
[360756889,1746979840934,-1184.0,0.0001499,2]
[360756890,1746979840943,-1184.0,0.0001499,2]
[360756891,1746979840953,-1184.0,0.0001499,2]
[360756892,1746979840963,-1184.0,0.0001499,2]
[360756893,1746979840972,-1184.0,0.0001499,2]
[360756894,1746979840981,-1184.0,0.0001499,2]
[360756895,1746979840991,-1184.0,0.0001499,2]
[360756896,1746979841000,-1184.0,0.0001499,2]
[360756897,1746979841009,-1300.70781789,0.0001499,2]
[360756898,1746979841019,-91922.15507325,0.00014997,2]
[360756899,1746979841677,-159.25244632,0.00014867,2]
[360756900,1746979841688,-758.41289492,0.00014997,2]
[360756901,1746979842097,-144435.98109986,0.00014997,2]
[360756902,1746979842108,-2637.29429575,0.00014997,2]
[360756903,1746979842119,-735.81681817,0.00014997,2]
[360756904,1746979842130,-1825.9198814,0.00014997,2]
[360756905,1746979842875,-2256.30199177,0.00014997,2]
[360756906,1746979842887,-9837.5,0.00014997,2]
[360756907,1746979842899,-16980.0,0.00014997,2]
[360756983,1746979844385,-168782.55266142,0.00014997,2]